fUSD/lending_fUSD_20240201
["ID","MTS","AMOUNT","RATE_DAILY","PERIOD"]
[313146904,1706809833160,-150.0,0.00022809,2]
[313146905,1706809833170,-1500.0,0.0002281,2]
[313146906,1706809833179,-150.0,0.00022811,2]
[313146907,1706809833189,-200.0,0.00022816,2]
[313146908,1706809833198,-800.0,0.00022816,2]
[313146909,1706809833207,-200.0,0.00022816,2]
[313146910,1706809833217,-311.70538894,0.00022817,2]
[313146911,1706809833226,-150.0,0.00022821,2]
[313146912,1706809833236,-150.0,0.00022823,2]
[313146913,1706809833245,-150.0,0.00022825,2]
[313146914,1706809833257,-150.0,0.00022826,2]
[313146915,1706809833267,-1500.0,0.0002283,2]
[313146916,1706809833276,-1500.0,0.00022834,2]
[313146917,1706809833286,-184.96227971,0.00022839,2]
[313146918,1706809833296,-1562.83568944,0.00022841,2]
[313146919,1706809833305,-150.0,0.00022846,2]
[313146920,1706809833314,-150.0,0.00022849,2]
[313146921,1706809833324,-150.0,0.00022851,2]
[313146922,1706809833333,-150.0,0.00022852,2]
[313146923,1706809833343,-150.0,0.00022854,2]
[313146924,1706809833352,-150.0,0.00022863,2]
[313146925,1706809833363,-150.0,0.00022864,2]
[313146926,1706809833373,-150.0,0.00022866,2]
[313146927,1706809833383,-184.96227971,0.00022869,2]
[313146928,1706809833393,-150.0,0.00022873,2]
[313146929,1706809833403,-150.0,0.00022876,2]
[313146930,1706809833414,-150.0,0.00022879,2]
[313146931,1706809833423,-150.0,0.00022881,2]
[313146932,1706809833432,-1500.0,0.00022882,2]
[313146933,1706809833442,-1500.0,0.00022883,2]
[313146934,1706809833451,-150.0,0.00022883,2]
[313146935,1706809833460,-150.0,0.00022887,2]
[313146936,1706809833469,-150.0,0.00022888,2]
[313146937,1706809833479,-263.87823981,0.0002289,2]
[313146938,1706809833488,-1500.0,0.00022891,2]
[313146939,1706809833498,-150.0,0.00022891,2]
[313146940,1706809833508,-150.0,0.00022896,2]
[313146941,1706809833517,-150.0,0.00022896,2]
[313146942,1706809833526,-150.0,0.00022899,2]
[313146943,1706809833536,-150.0,0.00022899,2]
[313146944,1706809833545,-1000.0,0.000229,2]
[313146945,1706809833555,-161.17868996,0.000229,2]
[313146946,1706809833565,-157.25879481,0.000229,2]
[313146947,1706809833576,-300.0,0.000229,2]
[313146948,1706809833585,-5000.0,0.000229,2]
[313146949,1706809833595,-184.96227971,0.000229,2]
[313146950,1706809833604,-157.62891126,0.000229,2]
[313146951,1706809833613,-1249.00708275,0.000229,2]
[313146952,1706809833623,-205.56397973,0.000229,4]
[313146953,1706809833633,-108766.21585817,0.000229,2]
[313146954,1706809833645,-590.0394705,0.000229,2]
[313146955,1706809833657,-278.60878409,0.000229,2]
[313146956,1706809833670,-311.44051922,0.000229,2]
[313146957,1706809833685,-11080.29459186,0.000229,2]
[313146958,1706809833696,-1191.63461506,0.000229,2]
[313146959,1706809833708,-481.13236969,0.000229,2]
[313146960,1706809833719,-359.66464337,0.000229,2]
[313146961,1706809833731,-384173.9000958,0.000229,2]
[313146962,1706809833740,-297.39559869,0.000229,2]
[313146963,1706809833750,-154.12575357,0.000229,2]
[313146964,1706809833759,-7800.81084076,0.000229,2]
[313146971,1706809837695,-514.78262321,0.000229,2]
[313146973,1706809837705,-2123.97847146,0.000229,2]
[313146974,1706809837715,-1059.47570127,0.00022902,2]
[313146975,1706809837727,-440.52429873,0.00022902,2]
[313146976,1706809837736,-150.0,0.00022903,2]
[313146977,1706809837746,-150.0,0.00022908,2]
[313146978,1706809837757,-150.0,0.00022909,2]
[313146979,1706809837766,-150.0,0.00022919,2]
[313146980,1706809837776,-77.50598665,0.00022922,2]
[313146981,1706809837792,-72.49401335,0.00022922,2]
[313146982,1706809837802,-150.0,0.00022923,2]
[313146983,1706809837812,-1500.0,0.00022924,2]
[313146984,1706809837824,-150.0,0.00022928,2]
[313146985,1706809837833,-1500.0,0.00022932,2]
[313146986,1706809837842,-150.0,0.00022932,2]
[313146987,1706809837851,-150.0,0.00022933,2]
[313146988,1706809837862,-150.0,0.00022936,2]
[313146989,1706809837871,-302.97572168,0.00022936,2]
[313146990,1706809837880,-150.0,0.0002294,2]
[313146991,1706809837889,-163.55,0.00022942,2]
[313146992,1706809837900,-150.0,0.00022945,2]
[313146993,1706809837910,-150.0,0.00022946,2]
[313146994,1706809837919,-150.0,0.00022946,2]
[313146995,1706809837928,-1500.0,0.00022949,2]
[313146996,1706809837937,-150.0,0.00022953,2]
[313146997,1706809837946,-150.0,0.00022954,2]
[313146998,1706809837956,-150.0,0.00022961,2]
[313146999,1706809837965,-150.0,0.00022964,2]
[313147000,1706809837975,-539.0,0.00022965,2]
[313147001,1706809837984,-150.0,0.00022965,2]
[313147002,1706809837994,-150.0,0.00022967,2]
[313147003,1706809838004,-150.0,0.00022967,2]
[313147004,1706809838014,-150.0,0.0002297,2]
[313147005,1706809838023,-150.0,0.00022971,2]
[313147006,1706809838033,-150.0,0.00022972,2]
[313147007,1706809838043,-150.0,0.00022982,2]
[313147008,1706809838053,-150.0,0.00022984,2]
[313147009,1706809838062,-150.0,0.0002299,2]
[313147010,1706809838072,-263.87823981,0.0002299,2]
[313147011,1706809838081,-263.87823981,0.0002299,2]
[313147012,1706809838091,-150.0,0.00022991,2]
[313147013,1706809838101,-150.0,0.00022995,2]
[313147014,1706809838110,-835.5122752,0.00022997,2]
[313147015,1706809838119,-155.3,0.00022997,2]
[313147016,1706809838129,-296.21525414,0.00022997,2]
[313147017,1706809838138,-186.69496292,0.00022997,2]
[313147018,1706809838147,-210.48403034,0.00022997,2]
[313147019,1706809838156,-2137.33040402,0.00022997,2]
[313147020,1706809838165,-6592.65983231,0.00022997,2]
[313147021,1706809838174,-440672.3927739,0.00022998,3]
[313147022,1706809838184,-343.06270534,0.00022998,2]
[313147023,1706809838193,-327.82736253,0.00022998,2]
[313147024,1706809838202,-39194.97845797,0.00022998,2]
[313147025,1706809838212,-344.74329012,0.00022998,2]
[313147026,1706809838221,-240.36283375,0.00022998,2]
[313147027,1706809838231,-5044.18060529,0.00022998,2]
[313147028,1706809838240,-4248.54360956,0.00022998,2]
[313147030,1706809838250,-1013.05,0.00022998,2]
[313147032,1706809838259,-860.83950855,0.00022998,2]
[313147034,1706809838268,-150.0,0.00022998,2]
[313147035,1706809838277,-164.0,0.00022999,2]
[313147036,1706809838286,-2330.55696705,0.00022999,2]
[313147037,1706809838296,-150.01,0.00022999,2]
[313147038,1706809838306,-3306.75797983,0.00022999,2]
[313147039,1706809838315,-500.0,0.00022999,2]
[313147040,1706809838325,-500.0,0.00022999,2]
[313147041,1706809838333,-500.0,0.00022999,2]
[313147042,1706809838342,-419.3896757,0.00022999,2]
[313147043,1706809838351,-500.0,0.00022999,2]
[313147044,1706809838361,-500.0,0.00022999,2]
[313147045,1706809838370,-500.0,0.00022999,2]
[313147046,1706809838379,-500.0,0.00022999,2]
[313147047,1706809838388,-342.63123489,0.00022999,2]
[313147048,1706809838397,-500.0,0.00022999,2]
[313147049,1706809838406,-500.0,0.00022999,2]
[313147050,1706809838415,-212.16240042,0.00022999,2]
[313147051,1706809838424,-504.32460233,0.00022999,2]
[313147052,1706809838433,-500.0,0.00022999,2]
[313147053,1706809838442,-500.0,0.00022999,2]
[313147054,1706809838451,-500.0,0.00022999,2]
[313147055,1706809838460,-500.0,0.00022999,2]
[313147056,1706809838469,-500.0,0.00022999,2]
[313147057,1706809838478,-297.19442955,0.00022999,2]
[313147058,1706809838487,-500.0,0.00022999,2]
[313147059,1706809838496,-500.0,0.00022999,2]
[313147060,1706809838506,-500.0,0.00022999,2]
[313147061,1706809838515,-500.0,0.00022999,2]
[313147062,1706809838525,-500.0,0.00022999,2]
[313147063,1706809838534,-500.0,0.00022999,2]
[313147064,1706809838542,-317.49501544,0.00022999,2]
[313147065,1706809838551,-500.0,0.00022999,2]
[313147066,1706809838561,-500.0,0.00022999,2]
[313147067,1706809838570,-500.0,0.00022999,2]
[313147068,1706809838579,-152.68666967,0.00022999,2]
[313147069,1706809838588,-500.0,0.00022999,2]
[313147070,1706809838598,-500.0,0.00022999,2]
[313147071,1706809838607,-500.0,0.00022999,2]
[313147072,1706809838616,-178.79082596,0.00022999,2]
[313147073,1706809838625,-500.0,0.00022999,2]
[313147074,1706809838634,-423.35993203,0.00022999,2]
[313147075,1706809838643,-563.10109569,0.00022999,2]
[313147076,1706809838653,-1000.0,0.00022999,2]
[313147077,1706809838662,-500.0,0.00022999,2]
[313147078,1706809838671,-163.78702735,0.00022999,2]
[313147079,1706809838681,-232.16973049,0.00022999,2]
[313147080,1706809838690,-350.0,0.00022999,2]
[313147081,1706809838699,-454.13610821,0.00022999,2]
[313147082,1706809838708,-350.0,0.00022999,2]
[313147083,1706809838718,-172.03317914,0.00023,3]
[313147084,1706809838727,-1225482.35703772,0.00023,2]
[313147085,1706809838736,-14733717.31035912,0.00023,2]
[313147086,1706809838745,-155.3123332,0.00023,2]
[313147087,1706809838755,-284.9333869,0.00023,2]
[313147088,1706809838765,-242.48475818,0.00023,2]
[313147089,1706809838774,-1008941.98150094,0.00023,2]
[313147090,1706809838937,-4543.91839151,0.00023,2]
[313147091,1706809838953,-1670.64200239,0.00023,2]
[313147092,1706809838964,-1261.7050684,0.00023,2]
[313147093,1706809838975,-4307.1972,0.00023,2]
[313147094,1706809838986,-1711.60859331,0.00023,2]
[313147095,1706809838996,-704.42175497,0.00023,2]
[313147096,1706809839010,-1038.57916476,0.00023,2]
[313147102,1706809840977,-1156.2,0.00023,2]
[313147103,1706809841087,-2383.12429369,0.00023,2]
[313147104,1706809841099,-1420.74016678,0.00023,2]
[313147105,1706809841110,-2793.077,0.00023,2]
[313147106,1706809841143,-2384.53733941,0.00023,2]
[313147116,1706809842721,-674.39633457,0.00023,2]
[313147117,1706809843312,-38170.58439884,0.00023,2]
[313147118,1706809843322,-2944.88280744,0.00023,2]
[313147119,1706809843332,-2000.0,0.00023,2]
[313147120,1706809843341,-200.0,0.00023,2]
[313147121,1706809843350,-1521.952362,0.00023,2]
[313147122,1706809843359,-1346.644249,0.00023015,2]
[313147123,1706809843368,-44205.297589,0.00023031,2]
[313147124,1706809843377,-2457.2638507,0.00023047,2]
[313147125,1706809843387,-150.0,0.00023063,2]
[313147126,1706809843396,-150.0,0.00023063,2]
[313147127,1706809843405,-150.0,0.00023063,2]
[313147128,1706809843415,-150.0,0.00023063,2]
[313147129,1706809843424,-150.0,0.00023063,2]
[313147130,1706809843433,-150.0,0.00023063,2]
[313147131,1706809843442,-150.0,0.00023063,2]
[313147132,1706809843451,-150.0,0.00023063,2]
[313147133,1706809843460,-150.0,0.00023063,2]
[313147134,1706809843469,-150.0,0.00023063,2]
[313147135,1706809843478,-150.0,0.00023063,2]
[313147136,1706809843487,-150.0,0.00023063,2]
[313147137,1706809843496,-150.0,0.00023063,2]
[313147138,1706809843505,-150.0,0.00023063,2]
[313147139,1706809843514,-150.0,0.00023063,2]
[313147140,1706809843524,-150.0,0.00023063,2]
[313147141,1706809843532,-150.0,0.00023063,2]
[313147142,1706809843541,-150.0,0.00023063,2]
[313147143,1706809843550,-150.0,0.00023063,2]
[313147144,1706809843559,-150.0,0.00023063,2]
[313147145,1706809843569,-150.0,0.00023063,2]
[313147146,1706809843578,-150.0,0.00023063,2]
[313147147,1706809843587,-150.0,0.00023063,2]
[313147148,1706809843596,-244.00662641,0.00023063,2]
[313147149,1706809843605,-150.0,0.00023063,2]
[313147150,1706809843614,-150.0,0.00023063,2]
[313147151,1706809843623,-150.0,0.00023063,2]
[313147152,1706809843632,-226.21,0.00023079,2]
[313147153,1706809843641,-1495.25936287,0.00023092,2]
[313147154,1706809843650,-3659.98935653,0.0002313,2]
[313147155,1706809843659,-163.55,0.00023133,2]
[313147156,1706809843668,-2000.0,0.0002323,2]
[313147157,1706809843677,-200.0,0.0002323,2]
[313147158,1706809843686,-1201.18858697,0.00023277,2]
[313147159,1706809843695,-1181.64539277,0.00023278,2]
[313147160,1706809843704,-164.91,0.00023288,2]
[313147161,1706809843713,-1290.22,0.00023363,2]
[313147162,1706809843722,-2000.0,0.00023462,2]
[313147163,1706809843731,-200.0,0.00023462,2]
[313147164,1706809843742,-1500.0,0.000235,2]
[313147165,1706809843752,-1999.9999999,0.00023697,2]
[313147166,1706809843766,-271.24,0.0002384,2]
[313147167,1706809843775,-178.77,0.00023908,2]
[313147168,1706809843786,-93075.15188011,0.00023999,2]
[313147169,1706809843796,-500.3911992,0.00023999,2]
[313147170,1706809843805,-201.73516107,0.00024,2]
[313147171,1706809843817,-1500.0,0.00024,2]
[313147172,1706809843829,-299.999999,0.000241,2]
[313147173,1706809843839,-167.0,0.00024297,2]
[313147174,1706809843849,-157.09803962,0.000243,2]
[313147175,1706809843858,-2529.03,0.00024384,2]
[313147176,1706809843867,-325.86274172,0.0002442,2]
[313147177,1706809843877,-462.4,0.00024426,2]
[313147178,1706809843887,-226.21,0.00024449,2]
[313147179,1706809843897,-1500.0,0.000245,2]
[313147180,1706809843907,-672.0,0.00024565,2]
[313147181,1706809843917,-250.0,0.00024658,2]
[313147182,1706809843927,-2500.0,0.00024658,3]
[313147183,1706809843936,-10000.0,0.00024658,2]
[313147184,1706809843945,-271.24,0.00024683,2]
[313147185,1706809843955,-164.91,0.00024744,2]
[313147186,1706809843964,-205.0,0.00024757,5]
[313147187,1706809843974,-210.0,0.00024783,2]
[313147188,1706809843984,-278.42,0.00024813,2]
[313147189,1706809843993,-154.12575356,0.00024974,2]
[313147190,1706809844003,-167.80869471,0.00025,2]
[313147191,1706809844015,-304.2742515,0.00025,2]
[313147192,1706809844025,-1911.06720332,0.00025,2]
[313147193,1706809844034,-159.19838367,0.00025,2]
[313147194,1706809844043,-1253.06290056,0.00025,2]
[313147195,1706809844052,-935.55189282,0.00025,2]
[313147196,1706809844062,-1587.92031382,0.00025,2]
[313147197,1706809844071,-202.54115654,0.00025,2]
[313147198,1706809844081,-208.46122201,0.00025,4]
[313147199,1706809844090,-10872.872634,0.00025,10]
[313147200,1706809844100,-649.31119221,0.00025,7]
[313147201,1706809844111,-150.0,0.00025,2]
[313147202,1706809844120,-350.0,0.00025,3]
[313147203,1706809844130,-660.960534,0.00025,2]
[313147204,1706809844139,-1500.0,0.00025,2]
[313147205,1706809844148,-1290.22,0.00025006,2]
[313147206,1706809844159,-154.45378261,0.0002509,2]
[313147207,1706809844170,-167.0,0.00025099,2]
[313147208,1706809844179,-1327.56068092,0.000251,2]
[313147209,1706809844189,-274.81544978,0.0002549,2]
[313147210,1706809844198,-271.24,0.00025526,2]
[313147211,1706809844207,-163.08165836,0.000256,2]
[313147212,1706809844217,-167.0,0.00025901,2]
[313147213,1706809844226,-201.65025484,0.00026,2]
[313147214,1706809844238,-150.0,0.00026079,2]
[313147215,1706809844247,-178.77,0.00026081,2]
[313147216,1706809844260,-164.91,0.000262,2]
[313147217,1706809844269,-271.24,0.00026369,2]
[313147218,1706809844279,-18839.66498763,0.000264,2]
[313147219,1706809844289,-7999.99,0.0002665,5]
[313147220,1706809844299,-1290.22,0.0002665,2]
[313147221,1706809844308,-167.0,0.00026703,2]
[313147222,1706809844317,-205.0,0.00026715,8]
[313147223,1706809844327,-408.01,0.00026731,2]
[313147224,1706809844336,-167.29,0.00026731,2]
[313147225,1706809844346,-417.03641631,0.00027,2]
[313147226,1706809844355,-400.0,0.00027,3]
[313147227,1706809844364,-150.0,0.00027,2]
[313147228,1706809844373,-154.12575356,0.00027051,2]
[313147229,1706809844382,-278.42,0.00027077,2]
[313147230,1706809844391,-462.4,0.0002714,2]
[313147231,1706809844401,-271.24,0.00027213,2]
[313147232,1706809844410,-672.0,0.00027295,2]
[313147233,1706809844419,-2617.537585,0.00027379,2]
[313147234,1706809844428,-47315.8867326,0.00027379,2]
[313147235,1706809844438,-1351.6459152,0.00027379,2]
[313147236,1706809844448,-403.42262797,0.00027397,5]
[313147237,1706809844457,-892.21,0.00027397,2]
[313147238,1706809844467,-63606.0,0.00027397,4]
[313147239,1706809844477,-3306.46,0.00027397,2]
[313147240,1706809844486,-1562.41935936,0.000274,2]
[313147241,1706809844497,-186.18995355,0.000275,2]
[313147242,1706809844508,-167.0,0.00027505,2]
[313147243,1706809844517,-174.3,0.00027533,2]
[313147244,1706809844527,-3306.46,0.00027556,2]
[313147245,1706809844536,-892.21,0.00027614,2]
[313147246,1706809844546,-1000.0,0.000277,2]
[313147247,1706809844555,-907.0,0.000277,2]
[313147248,1706809844564,-3306.46,0.00027714,2]
[313147249,1706809844573,-2609.0,0.000278,2]
[313147250,1706809844583,-3370.0,0.000278,2]
[313147251,1706809844593,-892.21,0.0002783,2]
[313147252,1706809844602,-3306.46,0.00027872,2]
[313147253,1706809844612,-3306.46,0.0002803,2]
[313147254,1706809844621,-892.21,0.00028046,2]
[313147255,1706809844631,-271.24,0.00028056,2]
[313147256,1706809844640,-3306.46,0.00028189,2]
[313147257,1706809844651,-892.21,0.00028262,2]
[313147258,1706809844660,-1290.22,0.00028294,2]
[313147259,1706809844669,-167.0,0.00028307,2]
[313147260,1706809844679,-3306.46,0.00028347,2]
[313147261,1706809844689,-892.21,0.00028479,2]
[313147262,1706809844698,-3306.46,0.00028505,2]
[313147263,1706809844708,-3306.46,0.00028664,2]
[313147264,1706809844718,-205.0,0.00028673,11]
[313147265,1706809844727,-892.21,0.00028695,2]
[313147266,1706809844737,-3306.46,0.00028822,2]
[313147267,1706809844746,-50426.4758763,0.0002884,2]
[313147268,1706809844759,-486.0,0.00028859,5]
[313147269,1706809844768,-193.44145146,0.00028859,2]
[313147270,1706809844777,-2777.8113193,0.0002886,2]
[313147271,1706809844787,-2938.0850536,0.0002886,2]
[313147272,1706809844796,-3098.3587879,0.0002886,2]
[313147273,1706809844805,-20482.22858115,0.0002886,2]
[313147274,1706809844826,-10834.10835451,0.0002886,2]
[313147288,1706809845752,-710.96,0.000229,2]
[313147289,1706809845763,-150.01,0.00022999,2]
[313147290,1706809845773,-1897.84168589,0.00022999,2]
[313147291,1706809845807,-546.55667016,0.00022999,2]
[313147292,1706809845824,-339.18297734,0.00022999,2]
[313147293,1706809845863,-459.91149139,0.00022999,2]
[313147294,1706809845874,-63.26515505,0.00022999,2]
[313147295,1706809845883,-226.72810079,0.00022999,2]
[313147296,1706809845894,-260.70240049,0.00022999,2]
[313147297,1706809845907,-266.43076773,0.00022999,2]
[313147298,1706809845917,-22220.72808424,0.0002886,2]
[313147299,1706809845926,-56647.6541635,0.0002886,2]
[313147300,1706809845935,-1356.6475814,0.0002886,2]
[313147301,1706809845945,-1361.6492475,0.0002886,2]
[313147302,1706809845954,-1366.6509137,0.0002886,2]
[313147303,1706809845963,-1371.6525799,0.0002886,2]
[313147304,1706809845973,-208163.84327552,0.0002888,2]
[313147305,1706809845984,-473.11364916,0.0002888,2]
[313147306,1706809845996,-309.18,0.0002888,2]
[313147307,1706809846019,-9699.58959359,0.0002888,2]
[313147323,1706809853612,378.9339,0.00022441,2]
[313147324,1706809885737,536.12178792,0.00022078,2]
[313147325,1706809899020,242.48475818,0.00022441,2]
[313147326,1706809899136,155.3123332,0.00022501,2]
[313147327,1706809900146,284.9333869,0.00022501,2]
[313147328,1706809912053,5432.65111215,0.00015,10]
[313147329,1706809913170,8983.2344,0.00022441,2]
[313147330,1706809918614,345.0,0.00022077,2]
[313147331,1706810044032,206.0,0.00021799,2]
[313147332,1706810078188,156.33985434,0.00021799,2]
[313147333,1706810082620,155.0,0.00021799,2]
[313147334,1706810092166,169.95856105,0.00021799,2]
[313147335,1706810094128,534.6057752,0.00021799,2]
[313147336,1706810103990,534.31353818,0.00021799,2]
[313147337,1706810154912,286.56,0.00020222,2]
[313147338,1706810155223,286.56,0.00022486,2]
[313147339,1706810166041,200.0,0.000221,8]
[313147340,1706810168135,500.0,0.000222,8]
[313147341,1706810170344,700.0,0.000223,8]
[313147342,1706810171147,200.0,0.00022017,2]
[313147343,1706810172329,1000.0,0.000224,8]
[313147344,1706810174491,1300.0,0.000225,8]
[313147345,1706810199723,4656.2,0.00021918,2]
[313147346,1706810226911,1852.42,0.00021846,2]
[313147348,1706810247059,404.97,0.00022422,2]
[313147349,1706810281384,1620.23796861,0.0002231,2]
[313147350,1706810307220,215.03,0.00021774,2]
[313147351,1706810308696,163.87452074,0.00022432,2]
[313147352,1706810313507,163.87452071,0.00022491,2]
[313147353,1706810328811,250.0,0.00021774,2]
[313147354,1706810351917,400.0,0.00020175,2]
[313147355,1706810376499,339.82234476,0.00022491,2]
[313147356,1706810378750,2000.0,0.00021734,2]
[313147357,1706810402155,1175.1489536,0.00020175,2]
[313147358,1706810404659,345.0,0.00021761,2]
[313147359,1706810415431,500.0,0.00021751,2]
[313147360,1706810447017,194.49119342,0.00020175,2]
[313147361,1706810460443,205.50880658,0.00021751,2]
[313147362,1706810471764,500.0,0.00021751,2]
[313147363,1706810483387,979.76203139,0.00021642,2]
[313147364,1706810487613,500.0,0.00021751,2]
[313147365,1706810490674,500.0,0.00021759,2]
[313147366,1706810500338,1122.09241769,0.00021642,2]
[313147367,1706810515954,184.96,0.00021691,2]
[313147368,1706810520339,640.65517288,0.00021642,2]
[313147369,1706810523626,805.7884,0.00022422,2]
[313147370,1706810531495,250.0,0.00021918,2]
[313147371,1706810540763,200.0,0.00021691,2]
[313147372,1706810557250,182.21,0.00021702,2]
[313147373,1706810608866,2705.0,0.00021722,2]
[313147374,1706810617898,-150.0,0.00022501,2]
[313147375,1706810632157,247.40585287,0.000225,2]
[313147376,1706810638162,155.0,0.000225,2]
[313147377,1706810639255,296.57,0.00019793,2]
[313147378,1706810639616,296.57,0.00022057,2]
[313147379,1706810652678,489.67723234,0.000225,2]
[313147380,1706810654302,155.0,0.000225,2]
[313147381,1706810656955,155.0,0.000225,2]
[313147382,1706810666024,275.06,0.00021696,2]
[313147383,1706810668565,2152.24592062,0.000225,2]
[313147384,1706810672989,500.0,0.000225,2]
[313147385,1706810678678,7806.55150851,0.000225,2]
[313147386,1706810687540,3339.07998157,0.000225,2]
[313147388,1706810716046,200.0,0.00021698,2]
[313147389,1706810754025,943.91285857,0.000225,2]
[313147390,1706810756903,2470.0,0.00021759,2]
[313147391,1706810762727,150.0,0.000225,2]
[313147392,1706810764213,206.0,0.00022187,2]
[313147393,1706810767200,7806.55150851,0.000225,2]
[313147394,1706810773317,250.0,0.00021718,2]
[313147395,1706810825276,374.89403808,0.00022501,2]
[313147396,1706810827608,321.86,0.00021711,2]
[313147397,1706810828680,943.91285857,0.00022501,2]
[313147398,1706810830336,158.99,0.00021874,2]
[313147399,1706810830545,158.99,0.00022064,2]
[313147400,1706810830748,158.99,0.00022254,2]
[313147401,1706810830979,158.99,0.00022444,2]
[313147402,1706810853099,284.1871695,0.00022501,2]
[313147403,1706810855239,489.67723234,0.00022501,2]
[313147404,1706810873743,4285.27606857,0.00022501,2]
[313147407,1706810937850,206.28,0.00021703,2]
[313147408,1706810958628,852.03,0.00021686,2]
[313147409,1706810993537,200.0,0.00021716,2]
[313147410,1706811010199,500.0,0.00022439,2]
[313147411,1706811016731,500.0,0.00021717,2]
[313147412,1706811029869,189.53,0.00021696,2]
[313147413,1706811031610,822.1,0.00021696,2]
[313147429,1706811031852,-174.91490544,0.00022536,2]
[313147431,1706811031863,-1108.0,0.00022537,2]
[313147433,1706811031873,-150.0,0.00022538,2]
[313147435,1706811031882,-2244.34790567,0.00022539,2]
[313147439,1706811031912,-8282.42623965,0.00022539,2]
[313147440,1706811031921,-223.24249897,0.0002254,4]
[313147441,1706811031931,-163.87452071,0.00022549,2]
[313147442,1706811031941,-499.99,0.00022549,2]
[313147443,1706811031950,-1000.0,0.00022566,2]
[313147444,1706811031960,-155.6627,0.00022567,2]
[313147445,1706811031970,-1074.7819281,0.00022567,2]
[313147446,1706811031983,-956.9078761,0.00022567,2]
[313147447,1706811032040,-22718.3996958,0.00022567,2]
[313147448,1706811032050,-222.84629183,0.00022569,2]
[313147449,1706811032059,-4268.31,0.0002257,2]
[313147450,1706811032069,-221.48933488,0.0002257,2]
[313147451,1706811032079,-2201.9674,0.0002257,2]
[313147452,1706811032089,-762.26,0.0002257,2]
[313147453,1706811032098,-163.87452071,0.00022608,2]
[313147454,1706811032107,-158.99,0.00022634,2]
[313147455,1706811032117,-14733.11368095,0.00022654,2]
[313147456,1706811032126,-341.19258033,0.0002266,2]
[313147457,1706811032135,-330.669925,0.00022665,2]
[313147458,1706811032144,-158.77192459,0.00022665,2]
[313147459,1706811032155,-158.65512499,0.00022665,2]
[313147460,1706811032166,-500.0,0.00022665,2]
[313147461,1706811032175,-2850.64964616,0.00022665,2]
[313147462,1706811032186,-387.97709514,0.00022665,2]
[313147463,1706811032197,-1756.62144156,0.00022665,2]
[313147464,1706811032207,-355.38062368,0.00022665,2]
[313147465,1706811032217,-227.88141945,0.00022665,2]
[313147466,1706811032227,-467.04208328,0.00022665,2]
[313147467,1706811032236,-286.90133175,0.00022665,2]
[313147468,1706811032245,-600.16660579,0.00022665,2]
[313147469,1706811032255,-4281.45374729,0.00022665,2]
[313147470,1706811032265,-163.87452071,0.00022666,2]
[313147471,1706811032276,-1004.07625905,0.00022666,2]
[313147472,1706811032285,-51616.00377403,0.00022667,2]
[313147473,1706811032301,-5214.03621605,0.00022667,2]
[313147474,1706811032313,-14576.50989007,0.00022667,2]
[313147475,1706811037901,-1624.88455477,0.00022568,2]
[313147476,1706811037910,-78.54350123,0.00022667,2]
[313147477,1706811037927,-29626.60834459,0.00022667,2]
[313147478,1706811037966,-2158.24505822,0.00022667,2]
[313147479,1706811037977,-45966.94444316,0.00022667,2]
[313147480,1706811037988,-1631.5164132,0.00022667,2]